[Event "Titled Tuesday Blitz March 15 Early 2022"]
[White "Gulecyuz, Deniz"]
[Black "Tsatsalashvili, Keti"]
[WhiteFideId "30921341"]
[BlackFideId "13603434"]
[WhiteElo "1923"]
[BlackElo "2246"]
[Result "1/2-1/2"]
[Round "08"]
[TimeControl "180+1"]
[Date "2022.03.15"]
[WhiteClock "0:00:06"]
[BlackClock "0:00:09"]

1. Nf3 {[%clk 0:03:00]}  d5 {[%clk 0:02:59]} 2. g3 {[%clk 0:02:59]}  Nf6 {[%clk 0:02:59]} 3. Bg2 {[%clk 0:02:59]}  c5 {[%clk 0:02:59]} 4. c4 {[%clk 0:02:53]}  d4 {[%clk 0:02:59]} 5. d3 {[%clk 0:02:53]}  Nc6 {[%clk 0:02:59]} 6. O-O {[%clk 0:02:50]}  e5 {[%clk 0:02:59]} 7. e3 {[%clk 0:02:49]}  Bd6 {[%clk 0:02:50]} 8. exd4 {[%clk 0:02:47]}  cxd4 {[%clk 0:02:51]} 9. Re1 {[%clk 0:02:47]}  O-O {[%clk 0:02:50]} 10. a3 {[%clk 0:02:43]}  a5 {[%clk 0:02:49]} 11. c5 {[%clk 0:02:42]}  Bc7 {[%clk 0:02:46]} 12. Nbd2 {[%clk 0:02:40]}  h6 {[%clk 0:02:42]} 13. Nc4 {[%clk 0:02:39]}  Re8 {[%clk 0:02:43]} 14. Bd2 {[%clk 0:02:28]}  a4 {[%clk 0:02:39]} 15. b4 {[%clk 0:02:09]}  axb3 {[%clk 0:02:38]} 16. Qxb3 {[%clk 0:02:09]}  Nd7 {[%clk 0:02:10]} 17. Bb4 {[%clk 0:02:03]}  Kh7 {[%clk 0:01:54]} 18. Nd6 {[%clk 0:01:48]}  Nxc5 {[%clk 0:01:43]} 19. Bxc5 {[%clk 0:01:37]}  Bxd6 {[%clk 0:01:41]} 20. Bxd6 {[%clk 0:01:11]}  Qxd6 {[%clk 0:01:42]} 21. Qxf7 {[%clk 0:01:12]}  Re7 {[%clk 0:01:22]} 22. Qf8 {[%clk 0:00:57]}  Rb8 {[%clk 0:01:09]} 23. Nh4 {[%clk 0:00:49]}  g6 {[%clk 0:00:34]} 24. Rac1 {[%clk 0:00:20]}  Re6 {[%clk 0:00:20]} 25. Qf7+ {[%clk 0:00:19]}  Kh8 {[%clk 0:00:19]} 26. Be4 {[%clk 0:00:14]}  Ne7 {[%clk 0:00:09]} 27. Qf8+ {[%clk 0:00:07]}  Kh7 {[%clk 0:00:09]} 28. Qf7+ {[%clk 0:00:07]}  Kh8 {[%clk 0:00:09]} 29. Qf8+ {[%clk 0:00:05]}  Kh7 {[%clk 0:00:09]} 30. Qf7+ {[%clk 0:00:06]}  Kh8 {[%clk 0:00:09]} 1/2-1/2


[Site "https://www.chess.com"]

[Event "Titled Tuesday Blitz March 15 Early 2022"]
[White "Hernandez Jimenez, Alexander Andres"]
[Black "Zheenbekov, Nurgazy"]
[WhiteFideId "3900452"]
[BlackFideId "13800485"]
[WhiteElo "2082"]
[BlackElo "1959"]
[Result "0-1"]
[Round "08"]
[TimeControl "180+1"]
[Date "2022.03.15"]
[WhiteClock "0:01:53"]
[BlackClock "0:02:04"]

1. e4 {[%clk 0:03:00]}  e5 {[%clk 0:02:59]} 2. Nf3 {[%clk 0:03:00]}  Nc6 {[%clk 0:02:59]} 3. Bc4 {[%clk 0:02:59]}  Nf6 {[%clk 0:02:57]} 4. d3 {[%clk 0:02:59]}  Be7 {[%clk 0:02:57]} 5. O-O {[%clk 0:02:59]}  O-O {[%clk 0:02:57]} 6. c3 {[%clk 0:03:00]}  d5 {[%clk 0:02:54]} 7. exd5 {[%clk 0:02:59]}  Nxd5 {[%clk 0:02:54]} 8. Nbd2 {[%clk 0:02:59]}  a6 {[%clk 0:02:52]} 9. Re1 {[%clk 0:02:54]}  Nf4 {[%clk 0:02:44]} 10. Ne4 {[%clk 0:02:52]}  Ng6 {[%clk 0:02:41]} 11. h3 {[%clk 0:02:48]}  h6 {[%clk 0:02:38]} 12. Bb3 {[%clk 0:02:47]}  Kh8 {[%clk 0:02:39]} 13. d4 {[%clk 0:02:42]}  f5 {[%clk 0:02:37]} 14. Nc5 {[%clk 0:02:34]}  Bxc5 {[%clk 0:02:37]} 15. dxc5 {[%clk 0:02:34]}  e4 {[%clk 0:02:36]} 16. Nd4 {[%clk 0:02:30]}  Nce5 {[%clk 0:02:35]} 17. Ne6 {[%clk 0:02:26]}  Bxe6 {[%clk 0:02:33]} 18. Bxe6 {[%clk 0:02:26]}  Nd3 {[%clk 0:02:31]} 19. Rf1 {[%clk 0:02:21]}  Nxc5 {[%clk 0:02:30]} 20. Bc4 {[%clk 0:02:12]}  Qf6 {[%clk 0:02:24]} 21. Be3 {[%clk 0:02:11]}  Rad8 {[%clk 0:02:21]} 22. Bd4 {[%clk 0:02:04]}  Qg5 {[%clk 0:02:11]} 23. Qe2 {[%clk 0:01:53]}  Nf4 {[%clk 0:02:04]} 0-1


[Site "https://www.chess.com"]

[Event "Titled Tuesday Blitz March 15 Early 2022"]
[White "Horcajuelo Rocamora, Martin"]
[Black "Nenezic, Marko"]
[WhiteFideId "24573027"]
[BlackFideId "912123"]
[WhiteElo "1706"]
[BlackElo "2457"]
[Result "0-1"]
[Round "08"]
[TimeControl "180+1"]
[Date "2022.03.15"]
[WhiteClock "0:02:16"]
[BlackClock "0:02:00"]

1. e4 {[%clk 0:03:00]}  c5 {[%clk 0:02:58]} 2. Nf3 {[%clk 0:03:00]}  Nc6 {[%clk 0:02:58]} 3. d4 {[%clk 0:02:59]}  cxd4 {[%clk 0:02:59]} 4. Nxd4 {[%clk 0:03:00]}  Nf6 {[%clk 0:03:00]} 5. Nc3 {[%clk 0:03:00]}  e5 {[%clk 0:03:00]} 6. Ndb5 {[%clk 0:03:01]}  d6 {[%clk 0:03:01]} 7. Bg5 {[%clk 0:03:01]}  a6 {[%clk 0:03:01]} 8. Na3 {[%clk 0:03:01]}  b5 {[%clk 0:03:01]} 9. Nd5 {[%clk 0:03:02]}  Be7 {[%clk 0:03:01]} 10. Bxf6 {[%clk 0:03:01]}  Bxf6 {[%clk 0:03:02]} 11. c3 {[%clk 0:03:02]}  Ne7 {[%clk 0:03:02]} 12. Nc2 {[%clk 0:02:56]}  Bg5 {[%clk 0:02:52]} 13. h4 {[%clk 0:02:46]}  Bh6 {[%clk 0:02:52]} 14. Ncb4 {[%clk 0:02:44]}  O-O {[%clk 0:02:48]} 15. g4 {[%clk 0:02:39]}  Bf4 {[%clk 0:02:45]} 16. Qf3 {[%clk 0:02:37]}  Bb7 {[%clk 0:02:40]} 17. Nxf4 {[%clk 0:02:35]}  exf4 {[%clk 0:02:41]} 18. Qxf4 {[%clk 0:02:36]}  a5 {[%clk 0:02:33]} 19. Nc2 {[%clk 0:02:35]}  Ng6 {[%clk 0:02:31]} 20. Qd2 {[%clk 0:02:18]}  Bxe4 {[%clk 0:02:29]} 21. Rh2 {[%clk 0:02:19]}  Bxc2 {[%clk 0:02:27]} 22. Qxc2 {[%clk 0:02:18]}  Re8+ {[%clk 0:02:28]} 23. Be2 {[%clk 0:02:18]}  Nf4 {[%clk 0:02:26]} 24. f3 {[%clk 0:02:15]}  Nxe2 {[%clk 0:02:01]} 25. Rxe2 {[%clk 0:02:16]}  Qxh4+ {[%clk 0:02:01]} 26. Kd1 {[%clk 0:02:16]}  Qh1+ {[%clk 0:02:00]} 0-1


[Site "https://www.chess.com"]

[Event "Titled Tuesday Blitz March 15 Early 2022"]
[White "Ismayil, Malak"]
[Black "Secer, Ata"]
[WhiteFideId "13412604"]
[BlackFideId "6303293"]
[WhiteElo "2446"]
[BlackElo "2575"]
[Result "1/2-1/2"]
[Round "08"]
[TimeControl "180+1"]
[Date "2022.03.15"]
[WhiteClock "0:00:04"]
[BlackClock "0:00:04"]

1. e4 {[%clk 0:02:55]}  c5 {[%clk 0:02:59]} 2. Nf3 {[%clk 0:02:54]}  e6 {[%clk 0:02:59]} 3. Nc3 {[%clk 0:02:52]}  Nc6 {[%clk 0:02:59]} 4. Be2 {[%clk 0:02:51]}  a6 {[%clk 0:02:49]} 5. O-O {[%clk 0:02:51]}  b5 {[%clk 0:02:45]} 6. d3 {[%clk 0:02:51]}  Nf6 {[%clk 0:02:42]} 7. Bg5 {[%clk 0:02:50]}  Be7 {[%clk 0:02:42]} 8. a3 {[%clk 0:02:49]}  O-O {[%clk 0:02:40]} 9. Re1 {[%clk 0:02:49]}  d5 {[%clk 0:02:38]} 10. Bf1 {[%clk 0:02:48]}  Bb7 {[%clk 0:02:02]} 11. exd5 {[%clk 0:02:13]}  Nxd5 {[%clk 0:01:59]} 12. Bxe7 {[%clk 0:02:06]}  Ncxe7 {[%clk 0:01:57]} 13. Ne4 {[%clk 0:02:05]}  Rc8 {[%clk 0:01:55]} 14. Ng3 {[%clk 0:02:04]}  Nc6 {[%clk 0:01:51]} 15. Qd2 {[%clk 0:02:03]}  Nd4 {[%clk 0:01:51]} 16. Ne5 {[%clk 0:01:56]}  Nb6 {[%clk 0:01:45]} 17. Ng4 {[%clk 0:01:48]}  Re8 {[%clk 0:01:36]} 18. Rad1 {[%clk 0:01:41]}  f6 {[%clk 0:01:33]} 19. c3 {[%clk 0:01:38]}  Nc6 {[%clk 0:01:22]} 20. Nh5 {[%clk 0:01:36]}  e5 {[%clk 0:01:11]} 21. Nxg7 {[%clk 0:01:23]}  Kxg7 {[%clk 0:01:04]} 22. Qh6+ {[%clk 0:01:21]}  Kh8 {[%clk 0:01:04]} 23. Qxf6+ {[%clk 0:01:21]}  Qxf6 {[%clk 0:01:03]} 24. Nxf6 {[%clk 0:01:21]}  Re7 {[%clk 0:00:59]} 25. Ne4 {[%clk 0:01:19]}  Na5 {[%clk 0:00:46]} 26. Nd6 {[%clk 0:00:45]}  Rd8 {[%clk 0:00:41]} 27. Nf5 {[%clk 0:00:45]}  Ree8 {[%clk 0:00:36]} 28. Re3 {[%clk 0:00:37]}  e4 {[%clk 0:00:29]} 29. Rde1 {[%clk 0:00:31]}  Rf8 {[%clk 0:00:23]} 30. dxe4 {[%clk 0:00:28]}  Bxe4 {[%clk 0:00:23]} 31. Ng3 {[%clk 0:00:07]}  Bg6 {[%clk 0:00:21]} 32. h4 {[%clk 0:00:07]}  Nac4 {[%clk 0:00:20]} 33. Re6 {[%clk 0:00:05]}  Bf7 {[%clk 0:00:18]} 34. Re7 {[%clk 0:00:05]}  Nxb2 {[%clk 0:00:16]} 35. Nf5 {[%clk 0:00:05]}  Bg6 {[%clk 0:00:14]} 36. Nh6 {[%clk 0:00:05]}  Nd5 {[%clk 0:00:13]} 37. Ra7 {[%clk 0:00:04]}  Nd3 {[%clk 0:00:11]} 38. Bxd3 {[%clk 0:00:03]}  Bxd3 {[%clk 0:00:12]} 39. Ng4 {[%clk 0:00:02]}  h5 {[%clk 0:00:08]} 40. Ne5 {[%clk 0:00:02]}  Ra8 {[%clk 0:00:06]} 41. Rxa8 {[%clk 0:00:01]}  Rxa8 {[%clk 0:00:07]} 42. Nxd3 {[%clk 0:00:02]}  Nxc3 {[%clk 0:00:07]} 43. Nxc5 {[%clk 0:00:02]}  a5 {[%clk 0:00:07]} 44. Re5 {[%clk 0:00:03]}  b4 {[%clk 0:00:08]} 45. axb4 {[%clk 0:00:03]}  axb4 {[%clk 0:00:08]} 46. Rxh5+ {[%clk 0:00:04]}  Kg8 {[%clk 0:00:09]} 47. Re5 {[%clk 0:00:04]}  Ra5 {[%clk 0:00:07]} 48. Rg5+ {[%clk 0:00:03]}  Kf7 {[%clk 0:00:07]} 49. Nb3 {[%clk 0:00:04]}  Ra3 {[%clk 0:00:06]} 50. Nd4 {[%clk 0:00:04]}  Ra1+ {[%clk 0:00:05]} 51. Kh2 {[%clk 0:00:04]}  Rd1 {[%clk 0:00:06]} 52. Nb3 {[%clk 0:00:03]}  Rb1 {[%clk 0:00:06]} 53. Nc5 {[%clk 0:00:03]}  Rc1 {[%clk 0:00:04]} 54. Nd3 {[%clk 0:00:03]}  Rb1 {[%clk 0:00:04]} 55. Nxb4 {[%clk 0:00:03]}  Rxb4 {[%clk 0:00:04]} 56. Rf5+ {[%clk 0:00:03]}  Kg6 {[%clk 0:00:04]} 57. Rf3 {[%clk 0:00:04]}  Ne4 {[%clk 0:00:02]} 58. g3 {[%clk 0:00:03]}  Nf6 {[%clk 0:00:02]} 59. Kg2 {[%clk 0:00:03]}  Rb2 {[%clk 0:00:02]} 60. Ra3 {[%clk 0:00:03]}  Rc2 {[%clk 0:00:02]} 61. Ra6 {[%clk 0:00:02]}  Kg7 {[%clk 0:00:02]} 62. Ra7+ {[%clk 0:00:02]}  Kg6 {[%clk 0:00:03]} 63. Ra6 {[%clk 0:00:03]}  Kg7 {[%clk 0:00:03]} 64. Ra7+ {[%clk 0:00:03]}  Kg6 {[%clk 0:00:04]} 65. Ra6 {[%clk 0:00:04]} 1/2-1/2


[Site "https://www.chess.com"]

[Event "Titled Tuesday Blitz March 15 Early 2022"]
[White "Johnson, Ben"]
[Black "Kanyamarala, Trisha"]
[WhiteFideId "2010917"]
[BlackFideId "45004722"]
[WhiteElo "2230"]
[BlackElo "2047"]
[Result "0-1"]
[Round "08"]
[TimeControl "180+1"]
[Date "2022.03.15"]
[WhiteClock "0:00:02"]
[BlackClock "0:01:02"]

1. Nf3 {[%clk 0:02:58]}  d5 {[%clk 0:02:55]} 2. e3 {[%clk 0:02:57]}  e6 {[%clk 0:02:56]} 3. c4 {[%clk 0:02:56]}  b6 {[%clk 0:02:54]} 4. cxd5 {[%clk 0:02:54]}  exd5 {[%clk 0:02:53]} 5. b3 {[%clk 0:02:55]}  Nf6 {[%clk 0:02:51]} 6. Bb2 {[%clk 0:02:55]}  c5 {[%clk 0:02:51]} 7. d4 {[%clk 0:02:43]}  cxd4 {[%clk 0:02:49]} 8. Nxd4 {[%clk 0:02:43]}  Bb4+ {[%clk 0:02:48]} 9. Bc3 {[%clk 0:02:32]}  Be7 {[%clk 0:02:42]} 10. Bb5+ {[%clk 0:02:29]}  Bd7 {[%clk 0:02:42]} 11. O-O {[%clk 0:02:26]}  O-O {[%clk 0:02:41]} 12. Qd3 {[%clk 0:02:09]}  a6 {[%clk 0:02:36]} 13. Bxd7 {[%clk 0:02:06]}  Qxd7 {[%clk 0:02:35]} 14. Nf5 {[%clk 0:02:04]}  Nc6 {[%clk 0:02:27]} 15. Nxe7+ {[%clk 0:01:59]}  Qxe7 {[%clk 0:02:26]} 16. Qf5 {[%clk 0:01:47]}  Ne4 {[%clk 0:02:10]} 17. Qxd5 {[%clk 0:01:38]}  Rac8 {[%clk 0:02:09]} 18. Bb2 {[%clk 0:01:26]}  Rfd8 {[%clk 0:01:57]} 19. Qh5 {[%clk 0:01:22]}  Nb4 {[%clk 0:01:55]} 20. Na3 {[%clk 0:01:07]}  Nd3 {[%clk 0:01:49]} 21. Nc4 {[%clk 0:00:43]}  Rxc4 {[%clk 0:01:41]} 22. bxc4 {[%clk 0:00:38]}  Nxb2 {[%clk 0:01:41]} 23. Rac1 {[%clk 0:00:25]}  Nd2 {[%clk 0:01:33]} 24. Rc2 {[%clk 0:00:15]}  Nxf1 {[%clk 0:01:31]} 25. Rxb2 {[%clk 0:00:15]}  Nd2 {[%clk 0:01:26]} 26. Rxb6 {[%clk 0:00:11]}  g6 {[%clk 0:01:25]} 27. Qe2 {[%clk 0:00:10]}  Nxc4 {[%clk 0:01:22]} 28. Rb1 {[%clk 0:00:09]}  Ne5 {[%clk 0:01:20]} 29. h3 {[%clk 0:00:08]}  Qe6 {[%clk 0:01:20]} 30. a4 {[%clk 0:00:07]}  Qf5 {[%clk 0:01:19]} 31. Rc1 {[%clk 0:00:05]}  Qd3 {[%clk 0:01:17]} 32. Qb2 {[%clk 0:00:04]}  Nc4 {[%clk 0:01:07]} 33. Qb4 {[%clk 0:00:02]}  Nd2 {[%clk 0:01:02]} 0-1


[Site "https://www.chess.com"]

[Event "Titled Tuesday Blitz March 15 Early 2022"]
[White "Kett, Tim"]
[Black "Miszler, Levente"]
[WhiteFideId "1801210"]
[BlackFideId "763276"]
[WhiteElo "2098"]
[BlackElo "1966"]
[Result "0-1"]
[Round "08"]
[TimeControl "180+1"]
[Date "2022.03.15"]
[WhiteClock "0:00:06"]
[BlackClock "0:00:36"]

1. e4 {[%clk 0:03:00]}  e6 {[%clk 0:03:00]} 2. d4 {[%clk 0:03:00]}  d5 {[%clk 0:03:00]} 3. e5 {[%clk 0:03:00]}  c5 {[%clk 0:02:59]} 4. c3 {[%clk 0:03:00]}  Nc6 {[%clk 0:02:59]} 5. Nf3 {[%clk 0:03:00]}  Bd7 {[%clk 0:03:00]} 6. Bd3 {[%clk 0:02:58]}  cxd4 {[%clk 0:02:57]} 7. cxd4 {[%clk 0:02:57]}  Qb6 {[%clk 0:02:57]} 8. O-O {[%clk 0:02:51]}  Nxd4 {[%clk 0:02:56]} 9. Nc3 {[%clk 0:02:48]}  Nxf3+ {[%clk 0:02:44]} 10. Qxf3 {[%clk 0:02:47]}  Bc5 {[%clk 0:02:33]} 11. Bg5 {[%clk 0:02:41]}  Ne7 {[%clk 0:02:28]} 12. Rad1 {[%clk 0:02:28]}  Rc8 {[%clk 0:02:24]} 13. Rfe1 {[%clk 0:02:25]}  h6 {[%clk 0:02:24]} 14. Bh4 {[%clk 0:02:24]}  Bb4 {[%clk 0:02:19]} 15. Qg4 {[%clk 0:02:14]}  g6 {[%clk 0:02:09]} 16. Bf6 {[%clk 0:01:45]}  Rg8 {[%clk 0:02:04]} 17. h4 {[%clk 0:01:43]}  Bxc3 {[%clk 0:01:46]} 18. bxc3 {[%clk 0:01:42]}  Rxc3 {[%clk 0:01:46]} 19. Bxe7 {[%clk 0:01:34]}  Kxe7 {[%clk 0:01:45]} 20. Qf4 {[%clk 0:01:33]}  h5 {[%clk 0:01:36]} 21. Qf6+ {[%clk 0:01:31]}  Ke8 {[%clk 0:01:37]} 22. Re3 {[%clk 0:01:27]}  Qd8 {[%clk 0:01:32]} 23. Qf4 {[%clk 0:00:57]}  g5 {[%clk 0:01:32]} 24. Qb4 {[%clk 0:00:43]}  Qc7 {[%clk 0:01:09]} 25. hxg5 {[%clk 0:00:40]}  Rxg5 {[%clk 0:01:05]} 26. f4 {[%clk 0:00:27]}  Rg4 {[%clk 0:01:03]} 27. Rh3 {[%clk 0:00:20]}  Qc5+ {[%clk 0:00:56]} 28. Qxc5 {[%clk 0:00:18]}  Rxc5 {[%clk 0:00:57]} 29. g3 {[%clk 0:00:15]}  h4 {[%clk 0:00:57]} 30. Rxh4 {[%clk 0:00:14]}  Rxg3+ {[%clk 0:00:56]} 31. Kf2 {[%clk 0:00:15]}  Rg8 {[%clk 0:00:54]} 32. Ke3 {[%clk 0:00:13]}  Rc3 {[%clk 0:00:52]} 33. Kd4 {[%clk 0:00:12]}  Ra3 {[%clk 0:00:52]} 34. Rd2 {[%clk 0:00:10]}  Rg3 {[%clk 0:00:50]} 35. Rh8+ {[%clk 0:00:07]}  Ke7 {[%clk 0:00:50]} 36. Rb8 {[%clk 0:00:08]}  Bc6 {[%clk 0:00:45]} 37. f5 {[%clk 0:00:07]}  exf5 {[%clk 0:00:36]} 38. Bxf5 {[%clk 0:00:07]}  Ra4+ {[%clk 0:00:36]} 39. Kc5 {[%clk 0:00:06]}  Rc4# {[%clk 0:00:36]} 0-1


[Site "https://www.chess.com"]

[Event "Titled Tuesday Blitz March 15 Early 2022"]
[White "Koellner, Ruben Gideon"]
[Black "Pakleza, Zbigniew"]
[WhiteFideId "12993093"]
[BlackFideId "1119290"]
[WhiteElo "2470"]
[BlackElo "2467"]
[Result "0-1"]
[Round "08"]
[TimeControl "180+1"]
[Date "2022.03.15"]
[WhiteClock "0:00:05"]
[BlackClock "0:00:28"]

1. d4 {[%clk 0:03:00]}  d6 {[%clk 0:02:59]} 2. Nf3 {[%clk 0:03:00]}  Bg4 {[%clk 0:02:58]} 3. Nbd2 {[%clk 0:03:00]}  Nf6 {[%clk 0:02:57]} 4. e4 {[%clk 0:03:01]}  e6 {[%clk 0:02:57]} 5. c3 {[%clk 0:03:01]}  d5 {[%clk 0:02:54]} 6. Bd3 {[%clk 0:02:56]}  Be7 {[%clk 0:02:50]} 7. e5 {[%clk 0:02:56]}  Nfd7 {[%clk 0:02:50]} 8. h3 {[%clk 0:02:55]}  Bh5 {[%clk 0:02:48]} 9. O-O {[%clk 0:02:49]}  c5 {[%clk 0:02:44]} 10. Qe2 {[%clk 0:02:43]}  Nc6 {[%clk 0:02:42]} 11. a3 {[%clk 0:02:42]}  cxd4 {[%clk 0:02:34]} 12. g4 {[%clk 0:02:42]}  dxc3 {[%clk 0:02:29]} 13. gxh5 {[%clk 0:02:42]}  cxd2 {[%clk 0:02:29]} 14. Bxd2 {[%clk 0:02:43]}  Qb6 {[%clk 0:02:04]} 15. Be3 {[%clk 0:02:40]}  Qc7 {[%clk 0:02:03]} 16. Bf4 {[%clk 0:02:39]}  f6 {[%clk 0:01:41]} 17. Rfe1 {[%clk 0:01:57]}  f5 {[%clk 0:01:23]} 18. Rac1 {[%clk 0:01:50]}  g5 {[%clk 0:01:11]} 19. hxg6 {[%clk 0:00:28]}  hxg6 {[%clk 0:01:09]} 20. Nd4 {[%clk 0:00:22]}  Nxd4 {[%clk 0:01:01]} 21. Rxc7 {[%clk 0:00:23]}  Nxe2+ {[%clk 0:01:02]} 22. Bxe2 {[%clk 0:00:19]}  g5 {[%clk 0:00:54]} 23. Bb5 {[%clk 0:00:07]}  gxf4 {[%clk 0:00:54]} 24. Bxd7+ {[%clk 0:00:06]}  Kf7 {[%clk 0:00:55]} 25. Rxb7 {[%clk 0:00:06]}  Rag8+ {[%clk 0:00:52]} 26. Kf1 {[%clk 0:00:06]}  f3 {[%clk 0:00:52]} 27. Re3 {[%clk 0:00:01]}  Rxh3 {[%clk 0:00:52]} 28. Ke1 {[%clk 0:00:02]}  Rg2 {[%clk 0:00:50]} 29. Kd2 {[%clk 0:00:03]}  Rxf2+ {[%clk 0:00:51]} 30. Kd3 {[%clk 0:00:03]}  Rfh2 {[%clk 0:00:48]} 31. Bb5 {[%clk 0:00:03]}  f2 {[%clk 0:00:47]} 32. Kd4 {[%clk 0:00:03]}  Kf8 {[%clk 0:00:39]} 33. Rb8+ {[%clk 0:00:03]}  Kg7 {[%clk 0:00:39]} 34. Rxh3 {[%clk 0:00:02]}  Rxh3 {[%clk 0:00:37]} 35. Rc8 {[%clk 0:00:03]}  Rh1 {[%clk 0:00:32]} 36. Rc7 {[%clk 0:00:02]}  Kf8 {[%clk 0:00:31]} 37. Rc8+ {[%clk 0:00:03]}  Kf7 {[%clk 0:00:31]} 38. Ra8 {[%clk 0:00:02]}  f1=Q {[%clk 0:00:28]} 39. Bxf1 {[%clk 0:00:03]}  Rxf1 {[%clk 0:00:29]} 40. Rxa7 {[%clk 0:00:03]}  f4 {[%clk 0:00:27]} 41. b4 {[%clk 0:00:03]}  Rd1+ {[%clk 0:00:27]} 42. Kc3 {[%clk 0:00:03]}  f3 {[%clk 0:00:27]} 43. Kc2 {[%clk 0:00:03]}  f2 {[%clk 0:00:27]} 44. Kxd1 {[%clk 0:00:04]}  f1=Q+ {[%clk 0:00:27]} 45. Kc2 {[%clk 0:00:05]}  Qf2+ {[%clk 0:00:28]} 0-1


[Site "https://www.chess.com"]

[Event "Titled Tuesday Blitz March 15 Early 2022"]
[White "Koridze, Lile"]
[Black "Migot, Tangi"]
[WhiteFideId "13612514"]
[BlackFideId "662445"]
[WhiteElo "1999"]
[BlackElo "2510"]
[Result "0-1"]
[Round "08"]
[TimeControl "180+1"]
[Date "2022.03.15"]
[WhiteClock "0:01:31"]
[BlackClock "0:01:11"]

1. d4 {[%clk 0:03:00]}  g6 {[%clk 0:03:00]} 2. c4 {[%clk 0:02:58]}  Bg7 {[%clk 0:03:01]} 3. Nc3 {[%clk 0:02:57]}  d6 {[%clk 0:03:00]} 4. e4 {[%clk 0:02:57]}  Nc6 {[%clk 0:03:00]} 5. Nf3 {[%clk 0:02:56]}  Bg4 {[%clk 0:02:59]} 6. d5 {[%clk 0:02:56]}  Nd4 {[%clk 0:02:59]} 7. Be2 {[%clk 0:02:53]}  Bxf3 {[%clk 0:02:59]} 8. Bxf3 {[%clk 0:02:52]}  c5 {[%clk 0:02:59]} 9. dxc6 {[%clk 0:02:51]}  bxc6 {[%clk 0:02:59]} 10. O-O {[%clk 0:02:51]}  e5 {[%clk 0:02:57]} 11. Rb1 {[%clk 0:02:47]}  a5 {[%clk 0:02:56]} 12. b3 {[%clk 0:02:47]}  Ne7 {[%clk 0:02:56]} 13. Ba3 {[%clk 0:02:46]}  c5 {[%clk 0:02:55]} 14. Be2 {[%clk 0:02:43]}  O-O {[%clk 0:02:54]} 15. Nd5 {[%clk 0:02:40]}  f5 {[%clk 0:02:53]} 16. Bd3 {[%clk 0:02:33]}  Nec6 {[%clk 0:02:37]} 17. f4 {[%clk 0:02:28]}  a4 {[%clk 0:02:19]} 18. b4 {[%clk 0:02:13]}  cxb4 {[%clk 0:02:16]} 19. Nxb4 {[%clk 0:02:13]}  Nxb4 {[%clk 0:02:06]} 20. Bxb4 {[%clk 0:02:12]}  exf4 {[%clk 0:02:07]} 21. Rxf4 {[%clk 0:02:10]}  Be5 {[%clk 0:02:03]} 22. Rf1 {[%clk 0:02:10]}  Qh4 {[%clk 0:01:59]} 23. g3 {[%clk 0:02:05]}  Bxg3 {[%clk 0:01:31]} 24. hxg3 {[%clk 0:02:05]}  Qxg3+ {[%clk 0:01:32]} 25. Kh1 {[%clk 0:02:05]}  fxe4 {[%clk 0:01:29]} 26. Bxe4 {[%clk 0:02:04]}  Qh4+ {[%clk 0:01:26]} 27. Kg1 {[%clk 0:01:58]}  Qxe4 {[%clk 0:01:26]} 28. Bxd6 {[%clk 0:01:51]}  Nf3+ {[%clk 0:01:24]} 29. Rxf3 {[%clk 0:01:36]}  Rxf3 {[%clk 0:01:22]} 30. Kh2 {[%clk 0:01:31]}  Rf2+ {[%clk 0:01:11]} 0-1


[Site "https://www.chess.com"]

[Event "Titled Tuesday Blitz March 15 Early 2022"]
[White "Kosteniuk, Alexandra"]
[Black "Moroni, Luca Jr"]
[WhiteFideId "4128125"]
[BlackFideId "865834"]
[WhiteElo "2469"]
[BlackElo "2573"]
[Result "1-0"]
[Round "08"]
[TimeControl "180+1"]
[Date "2022.03.15"]
[WhiteClock "0:00:12"]
[BlackClock "0:00:03"]

1. e4 {[%clk 0:03:00]}  d6 {[%clk 0:03:00]} 2. d4 {[%clk 0:03:00]}  e5 {[%clk 0:03:01]} 3. dxe5 {[%clk 0:02:59]}  dxe5 {[%clk 0:03:02]} 4. Qxd8+ {[%clk 0:02:58]}  Kxd8 {[%clk 0:03:03]} 5. Nf3 {[%clk 0:02:57]}  f6 {[%clk 0:03:03]} 6. Bc4 {[%clk 0:02:57]}  c6 {[%clk 0:03:03]} 7. Be3 {[%clk 0:02:52]}  Nd7 {[%clk 0:03:03]} 8. Nc3 {[%clk 0:02:51]}  Bc5 {[%clk 0:03:03]} 9. Bxc5 {[%clk 0:02:45]}  Nxc5 {[%clk 0:03:04]} 10. O-O-O+ {[%clk 0:02:46]}  Kc7 {[%clk 0:03:03]} 11. h3 {[%clk 0:02:45]}  Ne7 {[%clk 0:03:03]} 12. Nd2 {[%clk 0:02:44]}  a5 {[%clk 0:02:58]} 13. Rde1 {[%clk 0:02:36]}  Ng6 {[%clk 0:02:53]} 14. g3 {[%clk 0:02:30]}  Rd8 {[%clk 0:02:52]} 15. h4 {[%clk 0:02:24]}  h6 {[%clk 0:02:51]} 16. Nd1 {[%clk 0:02:17]}  b5 {[%clk 0:02:41]} 17. Be2 {[%clk 0:02:17]}  Be6 {[%clk 0:02:42]} 18. a3 {[%clk 0:02:03]}  b4 {[%clk 0:02:40]} 19. Ne3 {[%clk 0:01:48]}  bxa3 {[%clk 0:02:21]} 20. bxa3 {[%clk 0:01:49]}  Rab8 {[%clk 0:02:13]} 21. Bc4 {[%clk 0:01:49]}  Nf8 {[%clk 0:02:06]} 22. f4 {[%clk 0:01:41]}  Rd4 {[%clk 0:01:53]} 23. fxe5 {[%clk 0:01:40]}  fxe5 {[%clk 0:01:53]} 24. Bxe6 {[%clk 0:01:23]}  Nfxe6 {[%clk 0:01:52]} 25. Nec4 {[%clk 0:01:23]}  Na4 {[%clk 0:01:40]} 26. Rhf1 {[%clk 0:01:20]}  Nd8 {[%clk 0:01:28]} 27. Rf3 {[%clk 0:01:17]}  Rb5 {[%clk 0:01:23]} 28. Rb3 {[%clk 0:01:12]}  Rxb3 {[%clk 0:01:19]} 29. cxb3 {[%clk 0:01:11]}  Nc5 {[%clk 0:01:19]} 30. Kc2 {[%clk 0:01:08]}  a4 {[%clk 0:01:19]} 31. b4 {[%clk 0:01:07]}  Nd7 {[%clk 0:01:19]} 32. Kc3 {[%clk 0:01:04]}  Nf6 {[%clk 0:01:03]} 33. Nxe5 {[%clk 0:01:01]}  Rd6 {[%clk 0:01:03]} 34. Nec4 {[%clk 0:00:56]}  Re6 {[%clk 0:01:03]} 35. Re3 {[%clk 0:00:56]}  Nf7 {[%clk 0:00:58]} 36. Kd3 {[%clk 0:00:55]}  Ng4 {[%clk 0:00:55]} 37. Re1 {[%clk 0:00:55]}  Nfe5+ {[%clk 0:00:51]} 38. Nxe5 {[%clk 0:00:52]}  Nxe5+ {[%clk 0:00:52]} 39. Kc3 {[%clk 0:00:51]}  Rf6 {[%clk 0:00:52]} 40. Re3 {[%clk 0:00:48]}  Ng4 {[%clk 0:00:50]} 41. Re2 {[%clk 0:00:45]}  Ne5 {[%clk 0:00:43]} 42. Kd4 {[%clk 0:00:44]}  Re6 {[%clk 0:00:38]} 43. Nc4 {[%clk 0:00:42]}  Ng4 {[%clk 0:00:31]} 44. e5 {[%clk 0:00:41]}  h5 {[%clk 0:00:30]} 45. Nb2 {[%clk 0:00:35]}  Nh6 {[%clk 0:00:30]} 46. Rf2 {[%clk 0:00:33]}  g6 {[%clk 0:00:29]} 47. Nxa4 {[%clk 0:00:32]}  Nf5+ {[%clk 0:00:28]} 48. Ke4 {[%clk 0:00:25]}  Nxg3+ {[%clk 0:00:28]} 49. Kf4 {[%clk 0:00:26]}  Nf5 {[%clk 0:00:28]} 50. Nc5 {[%clk 0:00:26]}  Re7 {[%clk 0:00:28]} 51. Rh2 {[%clk 0:00:21]}  Nd4 {[%clk 0:00:18]} 52. a4 {[%clk 0:00:19]}  Rf7+ {[%clk 0:00:16]} 53. Ke4 {[%clk 0:00:19]}  Nf3 {[%clk 0:00:10]} 54. e6 {[%clk 0:00:18]}  Rf5 {[%clk 0:00:03]} 55. Rh3 {[%clk 0:00:15]}  Nd2+ {[%clk 0:00:03]} 56. Kd3 {[%clk 0:00:15]}  Nf1 {[%clk 0:00:02]} 57. a5 {[%clk 0:00:13]}  Rd5+ {[%clk 0:00:02]} 58. Kc3 {[%clk 0:00:12]}  Re5 {[%clk 0:00:02]} 59. a6 {[%clk 0:00:12]}  Ne3 {[%clk 0:00:02]} 60. a7 {[%clk 0:00:12]}  Nd5+ {[%clk 0:00:03]} 61. Kd4 {[%clk 0:00:12]}  Nb6 {[%clk 0:00:03]} 62. Kxe5 {[%clk 0:00:12]} 1-0


[Site "https://www.chess.com"]